bitfinex/quotes_ETHUSD_20251215
["timestamp","ask_amount","ask_price","bid_price","bid_amount"]
[1765782353503,0.002,3132.4,3132.3,5.32483881]
[1765782356064,0.002,3132.4,3132.3,5.45263535]
[1765782356466,0.002,3132.4,3132.3,5.85813935]
[1765782356651,0.002,3132.4,3132.3,5.83183881]
[1765782357581,0.002,3132.4,3132.3,4.25556352]
[1765782357883,0.002,3132.4,3132.3,4.71796352]
[1765782367185,0.002,3132.4,3132.3,4.25556352]
[1765782367694,0.002,3132.4,3132.3,4.71796352]
[1765782375424,0.002,3132.4,3132.3,9.12104149]
[1765782375599,0.002,3132.4,3132.3,10.20851678]
[1765782375918,0.002,3132.4,3132.3,10.33631904]
[1765782376132,0.002,3132.4,3132.3,4.96384107]
[1765782376419,0.002,3132.4,3132.3,9.82931904]
[1765782377002,0.002,3132.4,3132.3,9.36691904]
[1765782377218,0.002,3132.4,3132.3,4.24371751]
[1765782379290,0.002,3132.4,3132.3,4.70611751]
[1765782379485,0.002,3132.4,3132.3,3.77401751]
[1765782380216,0.002,3132.4,3132.3,4.23421751]
[1765782380419,0.002,3132.4,3132.3,0.58147529]
[1765782380591,0.002,3132.4,3132.3,3.77401751]
[1765782381419,0.002,3132.4,3132.3,5.45778464]
[1765782382044,0.002,3132.4,3132.3,4.99538464]
[1765782383946,0.002,3132.4,3132.3,5.45778464]
[1765782385545,0.002,3132.4,3132.3,5.48971006]
[1765782385844,0.002,3132.4,3132.3,6.48071006]
[1765782386011,0.002,3132.4,3132.3,6.44878464]
[1765782386338,0.002,3132.4,3132.3,5.98638464]
[1765782386537,0.002,3132.4,3132.3,3.77401751]
[1765782386742,0.4825,3132.4,3132.3,3.77401751]
[1765782388537,0.002,3132.4,3132.3,4.23051751]
[1765782388746,0.4832,3132.4,3132.3,0.001]
[1765782388931,0.9763,3132.4,3132.3,0.001]
[1765782391656,0.98588635,3132.4,3132.3,0.001]
[1765782391838,1.4037117,3132.4,3132.3,0.001]
[1765782394464,4.596152,3132.4,3132.3,0.001]
[1765782394757,1.4037117,3132.4,3132.3,0.001]
[1765782394955,4.596152,3132.4,3132.3,0.001]
[1765782395657,1.4037117,3132.4,3132.3,0.001]
[1765782395864,0.98588635,3132.4,3132.3,0.001]
[1765782398134,1.49288635,3132.4,3132.3,0.001]
[1765782399263,0.98588635,3132.4,3132.3,0.001]
[1765782399453,1.49288635,3132.4,3132.3,0.001]
[1765782400567,0.98588635,3132.4,3132.3,0.001]
[1765782400877,4.68532665,3132.4,3132.3,0.001]
[1765782401486,5.47308457,3132.4,3132.3,0.001]
[1765782408087,4.6757403,3132.4,3132.3,0.001]
[1765782408266,0.4832,3132.4,3132.3,0.001]
[1765782408472,0.002,3132.4,3132.3,0.9181]
[1765782409879,0.002,3132.4,3132.3,4.11064222]
[1765782410162,0.002,3132.4,3132.3,1.20213399]
[1765782410368,0.002,3132.4,3132.3,0.4557]
[1765782410573,0.002,3132.4,3132.3,0.9181]
[1765782411206,0.002,3132.4,3132.3,4.11064222]
[1765782413695,0.002,3132.4,3132.3,0.9181]
[1765782414015,0.002,3132.4,3132.3,4.11064222]
[1765782414202,0.002,3132.4,3132.3,4.97824499]
[1765782414406,0.002,3132.4,3132.3,1.78570277]
[1765782415615,0.002,3132.4,3132.3,4.97824499]
[1765782417286,0.002,3132.4,3132.3,4.51584499]
[1765782417612,0.002,3132.4,3132.3,4.98604499]
[1765782419125,0.002,3132.4,3132.3,1.79350277]
[1765782419307,0.002,3132.4,3132.3,1.32330277]
[1765782419930,0.002,3132.4,3132.3,4.51584499]
[1765782420728,0.002,3132.4,3132.3,4.98604499]
[1765782423625,0.002,3132.4,3132.3,5.01797041]
[1765782423828,0.002,3132.4,3132.3,4.98604499]
[1765782425825,0.002,3132.4,3132.3,6.07352028]
[1765782426038,0.002,3132.4,3132.3,7.03204338]
[1765782426258,0.002,3132.4,3132.3,6.56184338]
[1765782426546,0.002,3132.4,3132.3,6.07352028]
[1765782434868,0.5005,3132.4,3132.3,0.86860277]
[1765782436128,0.5005,3132.4,3132.3,0.001]
[1765782436330,0.9718,3132.4,3132.3,0.001]
[1765782436553,4.17382665,3132.4,3132.3,0.001]
[1765782439264,31.35290694,3132.4,3132.3,0.001]
[1765782439465,27.17983094,3132.4,3132.3,0.001]
[1765782439765,35.32878807,3132.4,3132.3,0.001]
[1765782444776,8.36940907,3132.4,3132.3,0.001]
[1765782444984,32.11918494,3132.4,3132.3,0.001]
[1765782446578,17.28121994,3132.4,3132.3,0.001]
[1765782447078,28.23409394,3132.4,3132.3,0.001]
[1765782448177,32.11918494,3132.4,3132.3,0.001]
[1765782448357,32.24706524,3132.4,3132.3,0.001]
[1765782449181,5.79468624,3132.4,3132.3,0.001]
[1765782449379,32.78614031,3132.4,3132.3,0.001]
[1765782449686,34.13682946,3132.4,3132.3,0.001]
[1765782450985,34.57307244,3132.4,3132.3,0.001]
[1765782451185,6.67045046,3132.4,3132.3,0.001]
[1765782451486,34.13682946,3132.4,3132.3,0.001]
[1765782452497,34.57307244,3132.4,3132.3,0.001]
[1765782453087,37.93507244,3132.4,3132.3,0.001]
[1765782453287,10.97569344,3132.4,3132.3,0.001]
[1765782453491,37.93507244,3132.4,3132.3,0.001]
[1765782454265,10.97569344,3132.4,3132.3,0.001]
[1765782454455,37.93507244,3132.4,3132.3,0.001]
[1765782455796,42.33945794,3132.4,3132.3,0.001]
[1765782456087,37.93507244,3132.4,3132.3,0.001]
[1765782456315,38.54121496,3132.4,3132.3,0.001]
[1765782457619,42.94560046,3132.4,3132.3,0.001]
[1765782458314,15.98622146,3132.4,3132.3,0.001]
[1765782458516,46.30760046,3132.4,3132.3,0.001]
[1765782458716,32.34974379,3131.9,3131.8,0.001]
[1765782458915,36.59594692,3131.9,3131.8,0.001]
[1765782459221,37.04794692,3131.9,3131.8,0.001]
[1765782459418,40.36882217,3131.9,3131.8,0.001]
[1765782460190,40.37840852,3131.9,3131.8,0.001]
[1765782460818,40.8146515,3131.9,3131.8,0.001]
[1765782462792,44.1766515,3131.9,3131.8,0.001]
[1765782463417,17.2172725,3131.9,3131.8,0.001]
[1765782463725,44.1766515,3131.9,3131.8,0.001]
[1765782464431,17.2172725,3131.9,3131.8,0.001]
[1765782464608,44.1766515,3131.9,3131.8,0.001]
[1765782464933,0.405504,3131.2,3131.0,0.001]
[1765782465150,33.32815374,3131.1,3131.0,0.001]
[1765782465439,42.36428429,3131.1,3131.0,0.001]
[1765782465624,38.08784904,3131.1,3131.0,0.001]
[1765782466214,42.49223454,3131.1,3131.0,0.001]
[1765782466838,33.17646354,3131.1,3131.0,0.001]
[1765782467020,38.08784904,3131.1,3131.0,0.001]
[1765782467506,11.12847004,3131.1,3131.0,0.001]
[1765782467702,33.17646354,3131.1,3131.0,0.001]
[1765782467903,8.58926865,3131.1,3131.0,0.4767]
[1765782468140,6.25510036,3131.1,3131.0,0.928]
[1765782468535,6.12715011,3131.1,3131.0,0.928]
[1765782469037,0.59006164,3131.5,3131.0,0.928]
[1765782469038,0.00958635,3131.5,3131.0,0.928]
[1765782469252,0.00958635,3131.5,3131.4,0.647]
[1765782469409,0.51658635,3131.5,3131.4,1.0983]
[1765782470315,0.507,3131.5,3131.4,1.52749428]
[1765782470525,0.507,3131.5,3131.4,1.0983]
[1765782475089,0.51658635,3131.7,3131.4,1.0993]
[1765782475361,0.51658635,3131.7,3131.6,0.4757]
[1765782475550,0.51658635,3131.9,3131.6,0.927]
[1765782475862,0.51658635,3131.9,3131.8,0.4757]
[1765782476264,3.2022972,3132.2,3131.8,0.927]
[1765782476265,0.00958635,3132.2,3131.8,0.927]
[1765782476456,0.507,3132.0,3131.8,0.4513]
[1765782476651,0.507,3132.0,3131.9,0.4513]
[1765782476856,0.507,3132.0,3131.9,0.927]
[1765782477064,0.00958635,3132.2,3131.9,1.33901234]
[1765782477248,0.00958635,3132.2,3132.1,0.6403]
[1765782477673,0.00958635,3132.2,3132.1,1.1052]
[1765782477962,3.20223049,3132.2,3132.1,1.1052]
[1765782478268,0.00958635,3132.2,3132.1,1.1052]
[1765782479154,0.002,3132.4,3132.1,1.1052]
[1765782479480,0.002,3132.4,3132.3,0.4793]
[1765782479863,0.002,3132.4,3132.3,0.9442]
[1765782480477,0.002,3132.4,3132.3,0.4793]
[1765782481869,0.002,3132.4,3132.3,0.9442]
[1765782482384,0.002,3132.4,3132.3,0.4793]
[1765782482687,0.4668,3132.4,3132.1,0.161]
[1765782482885,0.00958635,3132.2,3132.1,0.161]
[1765782483485,0.00958635,3132.2,3132.1,1.1052]
[1765782484090,0.47438635,3132.2,3131.5,0.4649]
[1765782484393,0.47438635,3132.2,3131.6,0.4649]
[1765782484394,0.00958635,3131.9,3131.6,0.4649]
[1765782484693,0.00958635,3131.9,3131.4,0.1723]
[1765782484694,0.00958635,3131.7,3131.4,0.1723]
[1765782484898,0.00958635,3131.5,3131.4,0.6372]
[1765782485212,0.00958635,3131.5,3131.4,0.6516]
[1765782485358,0.00958635,3131.5,3131.4,0.4803]
[1765782485890,0.00958635,3131.5,3131.4,0.9452]
[1765782486060,0.51658635,3131.5,3131.4,0.9452]
[1765782487087,0.51658635,3131.5,3131.4,0.4803]
[1765782487288,0.51658635,3131.5,3131.4,0.9452]
[1765782493295,0.51658635,3131.5,3131.4,0.4803]
[1765782494135,3.70994416,3131.5,3131.4,0.4803]
[1765782494825,4.8650588,3131.5,3131.4,0.001]
[1765782495329,5.3407588,3131.5,3131.4,0.001]
[1765782495693,4.8650588,3131.5,3131.4,0.001]
[1765782495892,1.20690099,3131.5,3131.4,0.4803]
[1765782496100,0.51658635,3131.5,3131.4,0.4803]
[1765782496721,0.00958635,3131.5,3131.4,0.4803]
[1765782496936,0.51658635,3131.5,3131.4,0.4803]
[1765782498602,0.51658635,3131.5,3131.4,0.9452]
[1765782499096,0.00958635,3131.5,3131.4,0.9452]
[1765782499297,0.51658635,3131.5,3131.4,0.9452]
[1765782499924,0.00958635,3131.5,3131.4,0.9452]
[1765782500147,0.51658635,3131.5,3131.4,0.9452]
[1765782500902,0.51658635,3131.5,3131.4,0.4803]
[1765782501655,0.00958635,3131.5,3131.4,0.4803]
[1765782501835,0.51658635,3131.5,3131.4,0.4803]
[1765782502536,3.20465529,3131.8,3131.4,0.4803]
[1765782502742,0.00958635,3131.6,3131.5,0.4793]
[1765782503342,0.00958635,3131.6,3131.5,0.9442]
[1765782504158,0.00958635,3131.6,3131.5,0.4793]
[1765782509468,3.20284219,3131.6,3131.5,0.4793]
[1765782509767,0.00958635,3131.6,3131.5,0.4793]
[1765782511265,3.20284219,3131.6,3131.5,0.4793]
[1765782511866,0.00958635,3131.6,3131.5,0.4793]
[1765782514855,3.20284219,3131.6,3131.5,0.4793]
[1765782515054,0.00958635,3131.6,3131.5,0.4793]
[1765782517279,0.507,3131.6,3131.5,0.9614]
[1765782517860,0.507,3131.6,3131.5,0.4793]
[1765782521984,0.507,3131.6,3131.5,0.9614]
[1765782524213,0.507,3131.6,3131.5,0.4793]
[1765782525098,0.507,3131.6,3131.4,0.001]
[1765782525099,4.17207191,3131.6,3131.4,0.001]
[1765782525281,0.00958635,3131.5,3131.4,0.001]
[1765782525693,0.00958635,3131.5,3131.4,0.4954]
[1765782526088,0.507,3131.6,3131.4,0.4954]
[1765782526089,0.51658635,3131.6,3131.4,0.4954]
[1765782526296,0.9673,3131.5,3131.4,0.001]
[1765782526493,0.002,3131.8,3131.5,0.9765]
[1765782526803,0.002,3131.8,3131.7,0.4944]
[1765782527103,0.509,3131.8,3131.7,0.4944]
[1765782527276,0.509,3131.8,3131.7,0.9765]
[1765782527478,0.002,3131.8,3131.7,4.16965387]
[1765782527694,0.002,3131.8,3131.7,5.34666041]
[1765782529011,0.002,3131.8,3131.7,5.37859194]
[1765782529506,0.002,3131.8,3131.7,5.34666041]
[1765782535517,0.002,3131.8,3131.7,9.75177413]
[1765782537012,0.002,3131.8,3131.7,5.34666041]
[1765782542848,0.002,3131.8,3131.7,4.86456041]
[1765782543842,0.002,3131.8,3131.7,5.35896041]
[1765782544924,0.002,3131.8,3131.7,9.76407413]
[1765782551854,0.002,3131.8,3131.7,5.35896041]
[1765782552056,0.002,3131.8,3131.7,9.76407413]
[1765782555950,0.002,3131.8,3131.7,14.57469185]
[1765782556151,0.002,3132.4,3131.7,24.15415346]
[1765782556352,0.002,3132.4,3132.3,5.01861372]
[1765782556762,0.002,3132.4,3132.3,5.51301372]
[1765782557367,0.002,3132.4,3132.3,8.70555594]
[1765782564179,0.9409,3132.4,3132.3,3.19254222]
[1765782565177,0.002,3132.4,3132.3,8.05015594]
[1765782565480,0.002,3132.4,3132.3,9.5098092]
[1765782566352,0.002,3132.4,3132.3,5.10469548]
[1765782566654,0.002,3132.4,3132.3,9.5098092]
[1765782567256,0.002,3132.4,3132.3,9.9701092]
[1765782567456,0.002,3132.4,3132.3,11.46208849]
[1765782568282,0.002,3132.4,3132.3,11.65738849]
[1765782570861,0.002,3133.1,3132.4,0.98597929]
[1765782571061,0.002,3133.1,3133.0,4.85771372]
[1765782571883,0.002,3133.1,3133.0,8.04954263]
[1765782572379,0.002,3133.1,3133.0,3.64442891]
[1765782573583,0.4992,3133.1,3133.0,3.19182891]
[1765782573788,0.9724,3133.1,3133.0,3.19182891]
[1765782574090,0.9724,3133.1,3131.8,0.001]
[1765782574091,4.16418775,3133.1,3131.8,0.001]
[1765782574256,0.00958635,3132.6,3132.1,4.40511372]
[1765782574762,0.6958,3132.2,3132.1,4.40511372]
[1765782574974,0.6958,3132.2,3131.9,3.19292614]
[1765782575169,0.4972,3131.9,3131.8,0.001]
[1765782575573,0.9704,3131.9,3131.8,0.001]
[1765782576874,1.43828042,3131.9,3131.8,0.001]
[1765782577482,0.9704,3131.9,3131.8,0.001]
[1765782578798,4.74382525,3131.9,3131.8,0.001]
[1765782582494,5.24982525,3131.9,3131.8,0.001]
[1765782588597,24.52483297,3131.9,3131.8,0.001]
[1765782588989,24.65273003,3131.9,3131.8,0.001]
[1765782589191,27.4382389,3131.9,3131.8,0.001]
[1765782589777,45.8577239,3131.9,3131.8,0.001]
[1765782593075,46.2632279,3131.9,3131.8,0.001]
[1765782593610,41.86770053,3131.9,3131.8,0.001]
[1765782594690,14.90832153,3131.9,3131.8,0.001]
[1765782594903,41.86770053,3131.9,3131.8,0.001]
[1765782597102,46.27281425,3131.9,3131.8,0.001]
[1765782597500,46.27833184,3131.9,3131.8,0.001]
[1765782600802,19.31895284,3131.9,3131.8,0.001]
[1765782601003,46.27833184,3131.9,3131.8,0.001]
[1765782601608,27.94535829,3131.7,3131.6,0.001]
[1765782601901,31.05620601,3131.7,3131.6,0.001]
[1765782602105,31.50830601,3131.7,3131.6,0.001]
[1765782602274,31.63623293,3131.7,3131.6,0.001]
[1765782602681,37.96523293,3131.7,3131.6,0.001]
[1765782602979,41.1583868,3131.7,3131.6,0.001]
[1765782603180,44.5203868,3131.7,3131.6,0.001]
[1765782608814,21.3387588,3131.7,3131.6,0.001]
[1765782609013,31.50232551,3131.7,3131.6,0.001]
[1765782609220,20.65035751,3131.7,3131.6,0.001]
[1765782609416,20.8253288,3131.7,3131.6,0.001]
[1765782609989,21.4338308,3131.7,3131.6,0.001]
[1765782610189,21.0283268,3131.7,3131.6,0.001]
[1765782611114,28.4840238,3131.7,3131.6,0.001]
[1765782611795,27.9780238,3131.7,3131.6,0.001]
[1765782611995,41.6643868,3131.7,3131.6,0.001]
[1765782613999,40.7062868,3131.7,3131.6,0.001]
[1765782614196,28.6185378,3131.7,3131.6,0.001]
[1765782614397,29.0706378,3131.7,3131.6,0.001]
[1765782614826,29.0706378,3131.7,3131.0,0.001]
[1765782614827,18.825137,3130.3,3130.2,0.001]
[1765782615127,0.506,3130.3,3130.2,0.001]
[1765782615298,0.506,3130.5,3130.2,0.9455]
[1765782615504,0.506,3130.5,3130.4,0.4711]
[1765782617403,0.506,3130.5,3130.4,0.9445]
[1765782617796,0.506,3130.5,3130.4,0.4711]
[1765782617996,0.506,3130.5,3130.4,0.9445]
[1765782618427,3.70037789,3130.5,3130.4,0.9445]
[1765782618726,0.506,3130.5,3130.4,0.4711]
[1765782619046,0.506,3130.5,3130.4,0.9445]
[1765782619898,0.51558635,3130.5,3130.4,0.9445]
[1765782621212,3.70996424,3130.5,3130.4,0.9445]
[1765782621413,3.70996424,3130.5,3130.4,0.4711]
[1765782622720,0.51558635,3130.5,3130.4,0.4711]
[1765782623030,3.70996424,3130.5,3130.4,0.4711]
[1765782623732,3.70996424,3130.5,3130.4,0.4721]
[1765782624808,4.18436424,3130.5,3130.4,0.4721]
[1765782625009,0.98998635,3130.5,3130.4,0.9455]
[1765782625348,4.18436424,3130.5,3130.4,0.9455]
[1765782625631,4.18436424,3130.5,3130.4,0.001]
[1765782625632,4.68426424,3130.5,3130.4,0.001]
[1765782625837,4.18436424,3130.5,3130.4,0.001]
[1765782626038,0.98998635,3130.5,3130.4,0.9455]
[1765782626234,0.98998635,3130.5,3130.4,0.4721]
[1765782626635,0.98998635,3130.5,3130.4,0.9455]
[1765782627039,4.18436424,3130.5,3130.4,0.9455]
[1765782627613,4.18436424,3130.5,3130.4,0.4721]
[1765782629318,4.64926424,3130.5,3130.4,0.001]
[1765782630947,4.18436424,3130.5,3130.4,0.4629]
[1765782631126,26.12277828,3130.5,3130.4,0.001]
[1765782631318,21.02057328,3130.5,3130.4,0.001]
[1765782632116,7.58046728,3130.5,3130.4,0.001]
[1765782632336,22.43175328,3130.5,3130.4,0.001]
[1765782633345,25.43175328,3130.5,3130.4,0.001]
[1765782633516,23.26851028,3130.5,3130.4,0.001]
[1765782633916,22.62410728,3130.5,3130.4,0.001]
[1765782634244,22.43175328,3130.5,3130.4,0.001]
[1765782634747,15.59942128,3130.5,3130.4,0.001]
[1765782635417,30.56434628,3130.5,3130.4,0.001]
[1765782635941,14.53995828,3130.5,3130.4,0.001]
[1765782636250,15.00855828,3130.5,3130.4,0.001]
[1765782636570,17.01756528,3130.5,3130.4,0.001]
[1765782637044,17.01956528,3130.5,3130.4,0.001]
[1765782637435,7.17696328,3130.5,3130.4,0.001]
[1765782637627,18.57680628,3130.5,3130.4,0.001]
[1765782638521,18.51917328,3130.5,3130.4,0.001]
[1765782639245,17.56017128,3130.5,3130.4,0.001]
[1765782639546,17.87969128,3130.5,3130.4,0.001]
[1765782640044,17.41749928,3130.5,3130.4,0.001]
[1765782640547,7.17696328,3130.5,3130.4,0.001]
[1765782640747,17.41749928,3130.5,3130.4,0.001]
[1765782641147,17.82300328,3130.5,3130.4,0.001]
[1765782641323,17.35440328,3130.5,3130.4,0.001]
[1765782641846,17.82927328,3130.5,3130.4,0.001]
[1765782642722,30.55711028,3130.5,3130.4,0.001]
[1765782642916,22.61046328,3130.5,3130.4,0.001]
[1765782643520,11.21053828,3130.5,3130.4,0.001]
[1765782643716,0.6485,3129.1,3127.7,0.001]
[1765782643916,0.1836,3130.0,3128.3,4.41063131]
[1765782644149,0.1836,3130.0,3129.0,0.4619]
[1765782644150,0.58047529,3129.8,3129.0,0.4619]
[1765782644348,0.58047529,3129.8,3127.8,12.95164144]
[1765782644349,1.46682953,3129.9,3129.1,0.6354]
[1765782644554,1.46682953,3129.9,3129.1,0.163]
[1765782644555,0.6906,3129.9,3129.1,0.163]
[1765782644735,3.557321,3129.7,3129.1,0.163]
[1765782645119,3.557321,3129.7,3128.1,0.58047529]
[1765782645325,0.58047529,3129.4,3128.2,0.4724]
[1765782645527,0.00958726,3128.7,3128.2,0.96070313]
[1765782645736,0.00958726,3128.7,3128.2,0.4724]
[1765782645940,0.00958726,3128.7,3128.6,0.4619]
[1765782646147,0.00958726,3128.7,3128.3,0.4724]
[1765782646148,3.20580294,3128.7,3128.2,0.4724]
[1765782646525,0.00958726,3128.7,3128.6,0.4619]
[1765782646732,3.20580294,3128.7,3128.6,0.4619]
[1765782646923,0.00958726,3128.7,3128.6,0.4619]
[1765782647254,4.04295577,3128.7,3127.8,0.6355]
[1765782647546,0.0095888,3128.2,3128.0,3.66922992]
[1765782647749,0.0095888,3128.2,3128.1,3.19682874]
[1765782647954,0.0095888,3128.2,3128.1,4.13112874]
[1765782648149,0.0095888,3128.2,3128.1,3.65872874]
[1765782648329,0.51659033,3128.6,3128.1,0.9343]
[1765782648529,0.00959033,3128.4,3128.3,0.4619]
[1765782648736,0.00959033,3128.4,3128.2,0.4724]
[1765782648943,0.00959033,3128.4,3128.3,0.4619]
[1765782649146,0.6485,3127.9,3127.7,0.001]
[1765782649441,0.507,3127.8,3127.7,0.001]
[1765782649624,0.507,3127.8,3127.7,0.4734]
[1765782649830,0.507,3127.8,3127.7,0.9353]
[1765782650242,0.507,3127.8,3127.7,0.4629]
[1765782650654,0.507,3127.8,3127.7,0.001]
[1765782650842,4.54903728,3127.8,3127.7,0.001]
[1765782651150,0.51659155,3127.8,3127.7,0.001]
[1765782651356,0.51659155,3127.8,3127.7,0.4629]
[1765782651653,3.71372691,3127.8,3127.7,0.4629]
[1765782651960,0.98149155,3127.8,3127.7,0.001]
[1765782652128,4.17862691,3127.8,3127.7,0.001]
[1765782652637,4.91714898,3127.8,3127.7,0.001]
[1765782653253,5.38574898,3127.8,3127.7,0.001]
[1765782654750,5.38574898,3127.8,3127.7,0.4629]
[1765782654751,1.25511362,3127.8,3127.7,0.4629]
[1765782654954,0.51659155,3127.8,3127.7,0.4629]
[1765782655159,3.71372691,3127.8,3127.7,0.4629]
[1765782655327,0.51659155,3127.8,3127.7,0.4629]
[1765782655523,0.51659155,3127.8,3127.7,0.9353]
[1765782656458,3.71372691,3127.8,3127.7,0.4629]
[1765782656654,0.51659155,3127.8,3127.7,0.4629]
[1765782657157,0.507,3127.8,3127.7,0.9142]
[1765782657862,0.51659155,3127.8,3127.7,0.9142]
[1765782658358,0.51659155,3127.8,3127.7,0.4629]
[1765782658559,3.71372691,3127.8,3127.7,0.4629]
[1765782660254,0.98449155,3127.8,3127.7,0.001]
[1765782660456,0.507,3127.8,3127.7,0.4525]
[1765782660656,0.507,3127.8,3127.7,0.001]
[1765782660657,4.17203536,3127.8,3127.7,0.001]
[1765782660837,4.65123536,3127.8,3127.7,0.001]
[1765782661154,3.70413536,3127.8,3127.7,0.001]
[1765782661457,3.70413536,3127.8,3127.7,0.4525]
[1765782661650,4.86310125,3127.8,3127.7,0.001]
[1765782662043,5.34230125,3127.8,3127.7,0.001]
[1765782662640,4.86310125,3127.8,3127.7,0.001]
[1765782663360,1.19806589,3127.8,3127.7,0.4525]
[1765782663664,0.507,3127.8,3127.7,0.4525]
[1765782663839,3.70413536,3127.8,3127.7,0.4525]
[1765782664036,0.507,3127.8,3127.7,0.4525]
[1765782664248,0.00959155,3127.9,3127.7,5.32291745]
[1765782664451,0.00959155,3127.9,3127.8,0.4515]
[1765782664764,0.00959155,3127.9,3127.8,0.9028]
[1765782665366,0.00959155,3127.9,3127.7,0.001]
[1765782665567,0.00959155,3127.9,3127.8,0.4515]
[1765782665769,3.2066247,3127.9,3127.8,0.4515]
[1765782666066,0.00959155,3127.9,3127.8,0.4515]
[1765782667067,0.00959155,3127.9,3127.8,0.9028]
[1765782667455,0.47749155,3127.9,3127.7,0.001]
[1765782667656,0.48577221,3127.9,3127.8,0.4515]
[1765782667966,0.48577221,3127.9,3127.7,0.001]
[1765782668166,3.6828151,3127.9,3127.7,0.001]
[1765782668766,0.48577221,3127.9,3127.7,0.001]
[1765782668947,0.00959155,3127.9,3127.8,0.4515]
[1765782669142,0.00959155,3127.9,3127.8,5.32191745]
[1765782669769,0.00959155,3127.9,3127.8,0.9028]
[1765782671473,0.01159155,3127.9,3127.8,0.9028]
[1765782672168,0.47949155,3127.9,3127.7,0.001]
[1765782672741,0.01159155,3127.9,3127.7,0.001]
[1765782672941,0.01159155,3127.9,3127.8,0.4515]
[1765782674173,0.47949155,3127.9,3127.7,0.001]
[1765782674947,0.01159155,3127.9,3127.8,0.4515]
[1765782676374,4.10612774,3127.9,3127.7,0.001]
[1765782676565,3.63824278,3127.9,3127.7,0.001]
[1765782679250,0.4679,3127.8,3127.7,0.001]
[1765782679456,0.002,3127.9,3127.8,0.9028]
[1765782679775,0.002,3127.9,3127.7,0.001]
[1765782679776,3.19903315,3127.9,3127.7,0.001]
[1765782679954,0.00959155,3127.8,3127.7,0.001]
[1765782680156,3.67462691,3127.8,3127.7,0.001]
[1765782680454,11.17114309,3127.8,3127.7,0.001]
[1765782680651,12.15712238,3127.8,3127.7,0.001]
[1765782681255,39.11650138,3127.8,3127.7,0.001]
[1765782681674,22.13421738,3127.8,3127.7,0.001]
[1765782682261,33.42344938,3127.8,3127.7,0.001]
[1765782682460,31.16924038,3127.8,3127.7,0.001]
[1765782682660,23.46585738,3127.8,3127.7,0.001]
[1765782683081,22.87675738,3127.8,3127.7,0.001]
[1765782683282,23.27666338,3127.8,3127.7,0.001]
[1765782683854,12.15712238,3127.8,3127.7,0.001]
[1765782684590,14.38835838,3127.8,3127.7,0.001]
[1765782685192,12.15712238,3127.8,3127.7,0.001]
[1765782685380,20.77272438,3127.8,3127.7,0.001]
[1765782685871,19.78795138,3127.8,3127.7,0.001]
[1765782686184,12.15712238,3127.8,3127.7,0.001]
[1765782686390,22.22734738,3127.8,3127.7,0.001]
[1765782687382,23.47482538,3127.8,3127.7,0.001]
[1765782688297,39.11650138,3127.8,3127.7,0.001]
[1765782688799,14.54119338,3127.8,3127.7,0.001]
[1765782689000,12.15712238,3127.8,3127.7,0.001]
[1765782689164,14.28041838,3127.8,3127.7,0.001]
[1765782689368,13.81251838,3127.8,3127.7,0.4702]
[1765782689591,14.29821838,3127.8,3127.7,0.001]
[1765782689886,13.62161065,3127.8,3127.7,0.4702]
[1765782690059,13.04113536,3127.8,3127.7,0.4702]
[1765782690870,9.844,3127.8,3127.7,0.9229]
[1765782691075,9.056198,3127.8,3127.7,0.9229]
[1765782691403,6.836,3127.8,3127.7,0.9229]
[1765782691895,6.838,3127.8,3127.7,0.9229]
[1765782692796,6.331,3127.8,3127.7,0.9229]
[1765782696074,6.331,3127.8,3127.7,8.95137894]
[1765782696075,0.002,3127.8,3127.7,8.95137894]
[1765782699909,0.002,3127.8,3127.7,4.53226149]
[1765782700086,0.002,3127.8,3127.7,8.95137894]
[1765782703280,0.002,3127.8,3127.7,9.45837894]
[1765782703802,0.002,3127.8,3127.7,5.03926149]
[1765782709814,0.002,3127.8,3127.7,9.45837894]
[1765782712013,0.002,3127.8,3127.7,8.95137894]
[1765782712195,0.002,3127.8,3127.7,9.45837894]
[1765782715506,0.002,3127.8,3127.7,10.44435823]
[1765782716584,0.002,3127.8,3127.7,4.66003678]
[1765782716790,0.002,3127.8,3127.7,10.03885423]
[1765782718886,0.002,3127.8,3127.7,10.44435823]
[1765782719505,0.002,3127.8,3127.7,10.44050252]
[1765782724429,0.002,3127.8,3127.7,9.52799852]
[1765782724627,0.002,3127.8,3127.7,5.61973678]
[1765782729602,0.002,3127.8,3127.7,6.02524078]
[1765782743662,0.002,3127.8,3127.7,6.05721315]
[1765782743869,0.4782,3129.4,3127.8,10.79390277]
[1765782744173,0.4802,3129.2,3128.8,4.41526174]
[1765782744967,0.002,3129.2,3128.8,4.41526174]
[1765782745139,0.002,3129.2,3129.0,0.4818]
[1765782745830,0.002,3129.2,3129.0,3.67770923]
[1765782746031,0.002,3129.2,3129.0,4.17330923]
[1765782746274,0.002,3129.2,3129.0,5.15928852]
[1765782746557,0.002,3129.2,3129.0,6.4363458]
[1765782748639,0.002,3129.2,3129.0,10.85160754]
[1765782749162,0.002,3129.2,3129.0,5.9407458]
[1765782749377,0.002,3129.2,3129.0,6.4477458]
[1765782749680,0.002,3129.2,3129.0,6.9077458]
[1765782749873,0.002,3129.2,3129.0,11.32300754]
[1765782750178,0.6431,3130.3,3129.1,1.91797929]
[1765782750351,0.6431,3130.3,3130.2,4.41526174]
[1765782750660,0.6431,3130.3,3129.2,2.40968445]
[1765782750661,0.1836,3130.3,3129.6,4.92226174]